Workbook

Sheet Remplissage
A1: Température extérieure | B1: Température de recirculation | C1: Débit total | D1: % volumique air neuf | E1: Puissance batterie froide
A2: 36 | B2: 42 | C2: 75000 | D2: 1
A3: 36 | B3: 42 | C3: 75000 | D3: 0.75
A4: 36 | B4: 42 | C4: 75000 | D4: 0.5
A5: 36 | B5: 42 | C5: 75000 | D5: 0.25
A6: 36 | B6: 41 | C6: 75000 | D6: 1
A7: 36 | B7: 41 | C7: 75000 | D7: 0.75
A8: 36 | B8: 41 | C8: 75000 | D8: 0.5
A9: 36 | B9: 41 | C9: 75000 | D9: 0.25
A10: 36 | B10: 40 | C10: 75000 | D10: 1
A11: 36 | B11: 40 | C11: 75000 | D11: 0.75
A12: 36 | B12: 40 | C12: 75000 | D12: 0.5
A13: 36 | B13: 40 | C13: 75000 | D13: 0.25
A14: 36 | B14: 39 | C14: 75000 | D14: 1
A15: 36 | B15: 39 | C15: 75000 | D15: 0.75
A16: 36 | B16: 39 | C16: 75000 | D16: 0.5
A17: 36 | B17: 39 | C17: 75000 | D17: 0.25
A18: 36 | B18: 38 | C18: 75000 | D18: 1
A19: 36 | B19: 38 | C19: 75000 | D19: 0.75
A20: 36 | B20: 38 | C20: 75000 | D20: 0.5
A21: 36 | B21: 38 | C21: 75000 | D21: 0.25
A22: 36 | B22: 37 | C22: 75000 | D22: 1
A23: 36 | B23: 37 | C23: 75000 | D23: 0.75
A24: 36 | B24: 37 | C24: 75000 | D24: 0.5
A25: 36 | B25: 37 | C25: 75000 | D25: 0.25
A26: 36 | B26: 36 | C26: 75000 | D26: 1
A27: 36 | B27: 36 | C27: 75000 | D27: 0.75
A28: 36 | B28: 36 | C28: 75000 | D28: 0.5
A29: 36 | B29: 36 | C29: 75000 | D29: 0.25
A30: 36 | B30: 35 | C30: 75000 | D30: 1
A31: 36 | B31: 35 | C31: 75000 | D31: 0.75
A32: 36 | B32: 35 | C32: 75000 | D32: 0.5
A33: 36 | B33: 35 | C33: 75000 | D33: 0.25
A34: 36 | B34: 34 | C34: 75000 | D34: 1
A35: 36 | B35: 34 | C35: 75000 | D35: 0.75
A36: 36 | B36: 34 | C36: 75000 | D36: 0.5
A37: 36 | B37: 34 | C37: 75000 | D37: 0.25
A38: 36 | B38: 33 | C38: 75000 | D38: 1
A39: 36 | B39: 33 | C39: 75000 | D39: 0.75
A40: 36 | B40: 33 | C40: 75000 | D40: 0.5
A41: 36 | B41: 33 | C41: 75000 | D41: 0.25
A42: 36 | B42: 32 | C42: 75000 | D42: 1
A43: 36 | B43: 32 | C43: 75000 | D43: 0.75
A44: 36 | B44: 32 | C44: 75000 | D44: 0.5
A45: 36 | B45: 32 | C45: 75000 | D45: 0.25
A46: 36 | B46: 31 | C46: 75000 | D46: 1
A47: 36 | B47: 31 | C47: 75000 | D47: 0.75
A48: 36 | B48: 31 | C48: 75000 | D48: 0.5
A49: 36 | B49: 31 | C49: 75000 | D49: 0.25
A50: 36 | B50: 30 | C50: 75000 | D50: 1
A51: 36 | B51: 30 | C51: 75000 | D51: 0.75
A52: 36 | B52: 30 | C52: 75000 | D52: 0.5
A53: 36 | B53: 30 | C53: 75000 | D53: 0.25
A54: 35 | B54: 42 | C54: 75000 | D54: 1
A55: 35 | B55: 42 | C55: 75000 | D55: 0.75
A56: 35 | B56: 42 | C56: 75000 | D56: 0.5
A57: 35 | B57: 42 | C57: 75000 | D57: 0.25
A58: 35 | B58: 41 | C58: 75000 | D58: 1
A59: 35 | B59: 41 | C59: 75000 | D59: 0.75
A60: 35 | B60: 41 | C60: 75000 | D60: 0.5
A61: 35 | B61: 41 | C61: 75000 | D61: 0.25
A62: 35 | B62: 40 | C62: 75000 | D62: 1
A63: 35 | B63: 40 | C63: 75000 | D63: 0.75
A64: 35 | B64: 40 | C64: 75000 | D64: 0.5
A65: 35 | B65: 40 | C65: 75000 | D65: 0.25
A66: 35 | B66: 39 | C66: 75000 | D66: 1
A67: 35 | B67: 39 | C67: 75000 | D67: 0.75
A68: 35 | B68: 39 | C68: 75000 | D68: 0.5
A69: 35 | B69: 39 | C69: 75000 | D69: 0.25
A70: 35 | B70: 38 | C70: 75000 | D70: 1
A71: 35 | B71: 38 | C71: 75000 | D71: 0.75
A72: 35 | B72: 38 | C72: 75000 | D72: 0.5
A73: 35 | B73: 38 | C73: 75000 | D73: 0.25
A74: 35 | B74: 37 | C74: 75000 | D74: 1
A75: 35 | B75: 37 | C75: 75000 | D75: 0.75
A76: 35 | B76: 37 | C76: 75000 | D76: 0.5
A77: 35 | B77: 37 | C77: 75000 | D77: 0.25
A78: 35 | B78: 36 | C78: 75000 | D78: 1
A79: 35 | B79: 36 | C79: 75000 | D79: 0.75
A80: 35 | B80: 36 | C80: 75000 | D80: 0.5
A81: 35 | B81: 36 | C81: 75000 | D81: 0.25
A82: 35 | B82: 35 | C82: 75000 | D82: 1
A83: 35 | B83: 35 | C83: 75000 | D83: 0.75
A84: 35 | B84: 35 | C84: 75000 | D84: 0.5
A85: 35 | B85: 35 | C85: 75000 | D85: 0.25
A86: 35 | B86: 34 | C86: 75000 | D86: 1
A87: 35 | B87: 34 | C87: 75000 | D87: 0.75
A88: 35 | B88: 34 | C88: 75000 | D88: 0.5
A89: 35 | B89: 34 | C89: 75000 | D89: 0.25
A90: 35 | B90: 33 | C90: 75000 | D90: 1
A91: 35 | B91: 33 | C91: 75000 | D91: 0.75
A92: 35 | B92: 33 | C92: 75000 | D92: 0.5
A93: 35 | B93: 33 | C93: 75000 | D93: 0.25
A94: 35 | B94: 32 | C94: 75000 | D94: 1
A95: 35 | B95: 32 | C95: 75000 | D95: 0.75
A96: 35 | B96: 32 | C96: 75000 | D96: 0.5
A97: 35 | B97: 32 | C97: 75000 | D97: 0.25
A98: 35 | B98: 31 | C98: 75000 | D98: 1
A99: 35 | B99: 31 | C99: 75000 | D99: 0.75
A100: 35 | B100: 31 | C100: 75000 | D100: 0.5
A101: 35 | B101: 31 | C101: 75000 | D101: 0.25
A102: 35 | B102: 30 | C102: 75000 | D102: 1
A103: 35 | B103: 30 | C103: 75000 | D103: 0.75
A104: 35 | B104: 30 | C104: 75000 | D104: 0.5
A105: 35 | B105: 30 | C105: 75000 | D105: 0.25
A106: 34 | B106: 42 | C106: 75000 | D106: 1
A107: 34 | B107: 42 | C107: 75000 | D107: 0.75
A108: 34 | B108: 42 | C108: 75000 | D108: 0.5
A109: 34 | B109: 42 | C109: 75000 | D109: 0.25
A110: 34 | B110: 41 | C110: 75000 | D110: 1
A111: 34 | B111: 41 | C111: 75000 | D111: 0.75
A112: 34 | B112: 41 | C112: 75000 | D112: 0.5
A113: 34 | B113: 41 | C113: 75000 | D113: 0.25
A114: 34 | B114: 40 | C114: 75000 | D114: 1
A115: 34 | B115: 40 | C115: 75000 | D115: 0.75
A116: 34 | B116: 40 | C116: 75000 | D116: 0.5
A117: 34 | B117: 40 | C117: 75000 | D117: 0.25
A118: 34 | B118: 39 | C118: 75000 | D118: 1
A119: 34 | B119: 39 | C119: 75000 | D119: 0.75
A120: 34 | B120: 39 | C120: 75000 | D120: 0.5
A121: 34 | B121: 39 | C121: 75000 | D121: 0.25
A122: 34 | B122: 38 | C122: 75000 | D122: 1
A123: 34 | B123: 38 | C123: 75000 | D123: 0.75
A124: 34 | B124: 38 | C124: 75000 | D124: 0.5
A125: 34 | B125: 38 | C125: 75000 | D125: 0.25
A126: 34 | B126: 37 | C126: 75000 | D126: 1
A127: 34 | B127: 37 | C127: 75000 | D127: 0.75
A128: 34 | B128: 37 | C128: 75000 | D128: 0.5
A129: 34 | B129: 37 | C129: 75000 | D129: 0.25
A130: 34 | B130: 36 | C130: 75000 | D130: 1
A131: 34 | B131: 36 | C131: 75000 | D131: 0.75
A132: 34 | B132: 36 | C132: 75000 | D132: 0.5
A133: 34 | B133: 36 | C133: 75000 | D133: 0.25
A134: 34 | B134: 35 | C134: 75000 | D134: 1
A135: 34 | B135: 35 | C135: 75000 | D135: 0.75
A136: 34 | B136: 35 | C136: 75000 | D136: 0.5
A137: 34 | B137: 35 | C137: 75000 | D137: 0.25
A138: 34 | B138: 34 | C138: 75000 | D138: 1
A139: 34 | B139: 34 | C139: 75000 | D139: 0.75
A140: 34 | B140: 34 | C140: 75000 | D140: 0.5
A141: 34 | B141: 34 | C141: 75000 | D141: 0.25
A142: 34 | B142: 33 | C142: 75000 | D142: 1
A143: 34 | B143: 33 | C143: 75000 | D143: 0.75
A144: 34 | B144: 33 | C144: 75000 | D144: 0.5
A145: 34 | B145: 33 | C145: 75000 | D145: 0.25
A146: 34 | B146: 32 | C146: 75000 | D146: 1
A147: 34 | B147: 32 | C147: 75000 | D147: 0.75
A148: 34 | B148: 32 | C148: 75000 | D148: 0.5
A149: 34 | B149: 32 | C149: 75000 | D149: 0.25
A150: 34 | B150: 31 | C150: 75000 | D150: 1
A151: 34 | B151: 31 | C151: 75000 | D151: 0.75
A152: 34 | B152: 31 | C152: 75000 | D152: 0.5
A153: 34 | B153: 31 | C153: 75000 | D153: 0.25
A154: 34 | B154: 30 | C154: 75000 | D154: 1
A155: 34 | B155: 30 | C155: 75000 | D155: 0.75
A156: 34 | B156: 30 | C156: 75000 | D156: 0.5
A157: 34 | B157: 30 | C157: 75000 | D157: 0.25
A158: 33 | B158: 42 | C158: 75000 | D158: 1
A159: 33 | B159: 42 | C159: 75000 | D159: 0.75
A160: 33 | B160: 42 | C160: 75000 | D160: 0.5
A161: 33 | B161: 42 | C161: 75000 | D161: 0.25
A162: 33 | B162: 41 | C162: 75000 | D162: 1
A163: 33 | B163: 41 | C163: 75000 | D163: 0.75
A164: 33 | B164: 41 | C164: 75000 | D164: 0.5
A165: 33 | B165: 41 | C165: 75000 | D165: 0.25
A166: 33 | B166: 40 | C166: 75000 | D166: 1
A167: 33 | B167: 40 | C167: 75000 | D167: 0.75
A168: 33 | B168: 40 | C168: 75000 | D168: 0.5
A169: 33 | B169: 40 | C169: 75000 | D169: 0.25
A170: 33 | B170: 39 | C170: 75000 | D170: 1
A171: 33 | B171: 39 | C171: 75000 | D171: 0.75
A172: 33 | B172: 39 | C172: 75000 | D172: 0.5
A173: 33 | B173: 39 | C173: 75000 | D173: 0.25
A174: 33 | B174: 38 | C174: 75000 | D174: 1
A175: 33 | B175: 38 | C175: 75000 | D175: 0.75
A176: 33 | B176: 38 | C176: 75000 | D176: 0.5
A177: 33 | B177: 38 | C177: 75000 | D177: 0.25
A178: 33 | B178: 37 | C178: 75000 | D178: 1
A179: 33 | B179: 37 | C179: 75000 | D179: 0.75
A180: 33 | B180: 37 | C180: 75000 | D180: 0.5
A181: 33 | B181: 37 | C181: 75000 | D181: 0.25
A182: 33 | B182: 36 | C182: 75000 | D182: 1
A183: 33 | B183: 36 | C183: 75000 | D183: 0.75
A184: 33 | B184: 36 | C184: 75000 | D184: 0.5
A185: 33 | B185: 36 | C185: 75000 | D185: 0.25
A186: 33 | B186: 35 | C186: 75000 | D186: 1
A187: 33 | B187: 35 | C187: 75000 | D187: 0.75
A188: 33 | B188: 35 | C188: 75000 | D188: 0.5
A189: 33 | B189: 35 | C189: 75000 | D189: 0.25
A190: 33 | B190: 34 | C190: 75000 | D190: 1
A191: 33 | B191: 34 | C191: 75000 | D191: 0.75
A192: 33 | B192: 34 | C192: 75000 | D192: 0.5
A193: 33 | B193: 34 | C193: 75000 | D193: 0.25
A194: 33 | B194: 33 | C194: 75000 | D194: 1
A195: 33 | B195: 33 | C195: 75000 | D195: 0.75
A196: 33 | B196: 33 | C196: 75000 | D196: 0.5
A197: 33 | B197: 33 | C197: 75000 | D197: 0.25
A198: 33 | B198: 32 | C198: 75000 | D198: 1
A199: 33 | B199: 32 | C199: 75000 | D199: 0.75
A200: 33 | B200: 32 | C200: 75000 | D200: 0.5
... 165 more rows

Sheet Calcul
C2: Débit massique | D2: Humidité abs | E2: Température | F2: Masse volumique | G2: Débit volumique | I2: Coef ASHRAE
I3: T<0°C | J3: T>=0°C
B4: Air neuf | C4: =G4*F4 -> 21624.30918 | D4: 15 | E4: 36 | F4: =E22/(287*(273.15+E4)) -> 1.14199832 | G4: 18935.5 | I4: -10214.165 | J4: -10440.397
B5: Air recirculé | C5: =G5*F5 -> 65752.92996 | D5: =E31 -> 8.384535197 | E5: 31.8625 | F5: =E22/(287*(273.15+E5)) -> 1.157489547 | G5: 56806.5 | H5: Vérif. Débit total volumique (m3/h) | I5: -4.8932428 | J5: -11.29465
B6: TOTAL | C6: =C4+C5 -> 87377.23914 | D6: =(D4*C4+D5*C5)/C6 -> 10.02174481 | E6: =(E4*C4+E5*C5)/C6 -> 32.8864575 | F6: =E22/(287*(273.15+E6)) -> 1.15361674 | G6: =G5+G4 -> 75742 | H6: =C6/F6 -> 75742 | I6: -0.0053765794 | J6: -0.027022355
I7: 1.9202377e-07 | J7: 1.289036e-05
I8: 3.5575832e-10 | J8: -2.4780681e-09
I9: -9.0344688e-14 | J9: 6.5459673
I10: 4.1635019
B12: Température entrée air BF | E12: =E6 -> 32.8864575 | F12: [°C]
B13: Température sortie air BF | E13: 11.94 | F13: [°C] | I13: Humidité | J13: 0.4
B14: Température entrée eau BF | E14: 5 | F14: [°C]
B15: Température sortie eau BF | E15: 10 | F15: [°C]
B17: Température moyenne eau BF | E17: =(E14+E15)/2 -> 7.5 | F17: [°C]
B18: Ratio débit recirculé/débit total | E18: =C5/C6 -> 0.7525178251 | F18: [-]
B19: Rendement d'ailette | E19: 0.85 | F19: [-]
B20: Apport humidificateur | E20: 6.6 | F20: [g/s]
B21: Humidité apportée par EU | E21: =G20*3600/C6 -> 0 | F21: [g/kg]
B22: Pression atmosphérique | E22: 101325 | F22: [Pa]
B24: Température de contact | E24: =E17+(1-E19)*(E12-E17) -> 11.30796862 | F24: [°C]
B25: Température de contact | E25: =1.8*E24+32+459.67 -> 512.0243435 | F25: [°R]
B26: Pression de vapeur à sat à Temp contact | E26: =6894.76*EXP($J$4/E25+$J$5+$J$6*E25+$J$7*E25^2+$J$8*E25^3+$J$9*LOG(E25,EXP(1))) -> 1339.85473 | F26: [Pa]
B27: Humidité à sat à Temp contact | E27: =1000*0.622*E26/(E22-E26) -> 8.335134583 | F27: [g/kg]
B28: Phi_x | E28: =(E12-E13)/(E12-E24) -> 0.9707101188 | F28: [-]
A30: RESULTATS | B30: Humidité en sortie de BF | E30: =(E18*(E21-D4)+D4-E28*(E18*(E21-D4)+D4-E27))/(1-E18+E18*E28) -> 8.384535197 | F30: [g/kg]
B31: Humidité de l'air recirculé | E31: =E30+E21 -> 8.384535197 | F31: [g/kg]
B33: Enthalpie en sortie de BF | E33: =1.006*E13+0.001*E30*(2500+1.826*E13) -> 33.15578132 | F33: [kJ/kg]
B34: Enthalpie en entrée de BF | E34: =1.006*E12+0.001*D6*(2500+1.826*E12) -> 58.73995078 | F34: [kJ/kg]
B36: Puissance totale BF (sensible+latente) | E36: =-C6/3600*(E34-E33) -> -620.965026 | F36: [kW]
B38: Débit de condensation BF | E38: =C6*(D6-E30)/3600/1000 -> 0.03973746008 | F38: [kg/s]
B39: Chaleur latente de condensation de l'eau | E39: =2500.8-2.36*E13+0.0016*E13*E13-0.00006*E13*E13*E13 -> 2472.747569 | F39: [kJ/kg] | G39: Corrélation [-25°C ; +40°C] prise à la température d'air en sortie de BF pour maximiser la part de la puissance latennte et minimiser la puissance sensible
B40: Puissance latente BF | E40: =-E39*E38 -> -98.26070781 | F40: [kW]
B42: Puissance sensible BF | E42: =E36-E40 -> -522.7043182 | F42: [kW]
